bitfinex-derivatives/quotes_ETHF0:USTF0_20250803
["timestamp","ask_amount","ask_price","bid_price","bid_amount"]
[1754259387941,0.6101,3488.8,3488.7,1.7947]
[1754259388142,1.1654,3488.8,3488.7,2.0513]
[1754259388446,0.846,3489.0,3488.9,2.0513]
[1754259388447,1.7556,3489.0,3488.9,2.0513]
[1754259388943,0.7945,3488.4,3488.3,4.96518]
[1754259389137,2.0114,3488.4,3488.3,2.24458]
[1754259389341,2.0114,3488.4,3488.3,2.62458]
[1754259389746,2.0114,3488.4,3488.3,2.0513]
[1754259389937,0.3664,3488.1,3487.7,3.695]
[1754259390141,3.2078,3488.7,3487.7,3.695]
[1754259390142,1.2169,3488.3,3487.9,0.57335]
[1754259390347,0.57328,3488.4,3487.9,0.57335]
[1754259390554,1.2169,3488.1,3487.9,0.57335]
[1754259390747,1.2169,3488.0,3487.9,0.57335]
[1754259390943,0.57331,3488.2,3487.4,3.5878]
[1754259391143,0.8505,3487.6,3487.5,0.57342]
[1754259391345,0.3664,3487.6,3487.5,0.57342]
[1754259391546,1.2169,3487.6,3487.5,1.43062]
[1754259392551,0.3709,3487.6,3487.5,1.81062]
[1754259393646,1.2169,3487.9,3487.8,0.8572]
[1754259393845,1.2169,3488.1,3487.8,0.8572]
[1754259394052,0.57331,3488.2,3487.8,0.8572]
[1754259394252,1.2169,3487.9,3487.8,0.8572]
[1754259394648,0.57337,3487.8,3487.3,0.57345]
[1754259394843,0.3664,3487.5,3487.3,0.57345]
[1754259395057,1.2169,3487.4,3487.3,0.57345]
[1754259395248,0.57337,3487.8,3487.2,0.57346]
[1754259395551,0.7373,3487.6,3487.2,1.43066]
[1754259395743,3.78116,3487.9,3487.4,0.57343]
[1754259395946,4.0538,3487.9,3487.4,1.81063]
[1754259396142,0.3709,3487.8,3487.7,0.38]
[1754259396446,0.3709,3488.1,3488.0,0.8141]
[1754259396644,0.6101,3488.1,3488.0,2.0513]
[1754259396846,2.0114,3488.1,3488.0,2.0513]
[1754259397252,2.0114,3488.1,3488.0,1.6713]
[1754259398656,1.2169,3488.0,3487.2,1.2372]
[1754259398853,1.2169,3487.9,3487.2,1.2372]
[1754259399057,1.2169,3487.8,3487.2,1.2372]
[1754259399253,1.2169,3487.8,3487.3,0.8572]
[1754259399560,0.3709,3488.1,3487.8,2.0513]
[1754259399754,3.2078,3488.4,3487.8,0.8141]
[1754259399950,0.9096,3488.0,3487.9,2.0513]
[1754259400157,0.2392,3488.0,3487.9,2.0513]
[1754259400553,0.9096,3488.3,3488.2,0.8141]
[1754259400861,0.9096,3488.3,3488.0,0.57334]
[1754259400862,1.0897,3488.6,3488.5,0.8141]
[1754259401063,1.0897,3488.6,3488.5,2.0513]
[1754259401261,1.3892,3488.6,3488.5,2.0513]
[1754259401462,2.0114,3488.6,3488.5,2.0513]
[1754259402159,2.0114,3488.6,3488.5,1.6713]
[1754259403757,0.8129,3488.1,3488.0,3.9959]
[1754259403961,2.0582,3488.1,3488.0,5.2209]
[1754259404855,1.33742,3488.7,3488.2,0.859]
[1754259405060,2.0582,3488.6,3488.5,1.6471]
[1754259405256,2.0582,3488.6,3488.5,2.0131]
[1754259405860,0.3796,3489.2,3488.9,0.7881]
[1754259406056,1.1078,3489.5,3489.4,0.2551]
[1754259406259,1.1925,3489.5,3489.4,2.0131]
[1754259406561,2.0582,3489.5,3489.4,1.6471]
[1754259407857,3.2078,3489.6,3489.5,1.36119]
[1754259408055,3.4599,3489.6,3489.5,2.58619]
[1754259408261,3.2078,3489.6,3489.5,2.58619]
[1754259408862,3.2078,3489.6,3489.5,2.0131]
[1754259409367,5.266,3489.6,3489.5,0.7881]
[1754259409557,0.8129,3489.3,3489.2,1.6471]
[1754259409760,2.0582,3489.3,3489.2,1.6471]
[1754259411163,0.8129,3489.0,3488.9,1.6471]
[1754259411368,2.0582,3489.0,3488.9,1.6471]
[1754259411867,2.0582,3489.0,3488.9,2.0131]
[1754259412370,0.3796,3488.9,3488.5,0.57326]
[1754259412566,0.8129,3488.7,3488.6,1.5442]
[1754259412770,1.1925,3488.7,3488.6,2.0131]
[1754259413466,1.1925,3489.2,3489.1,0.7881]
[1754259413668,2.0582,3489.2,3489.1,0.5514]
[1754259414470,2.0582,3489.2,3489.1,0.2551]
[1754259415266,2.63136,3489.2,3488.8,0.3901]
[1754259415474,2.0582,3489.0,3488.9,1.6471]
[1754259417276,0.9454,3489.0,3488.9,2.0131]
[1754259418163,1.6736,3489.5,3489.4,1.1541]
[1754259418365,3.2078,3489.6,3489.5,1.4801]
[1754259418571,3.2078,3489.6,3489.5,2.0131]
[1754259421384,1.0,3490.0,3489.9,2.58613]
[1754259422084,3.2078,3490.5,3490.4,2.58604]
[1754259422587,2.0582,3491.0,3490.9,0.7881]
[1754259422789,2.0582,3491.0,3490.9,2.0131]
[1754259423388,0.8129,3490.5,3490.4,1.1782]
[1754259423581,1.6736,3490.5,3490.4,2.0131]
[1754259423884,0.9454,3490.5,3490.4,2.0131]
[1754259424086,0.5658,3490.5,3490.4,2.0131]
[1754259424289,0.3846,3490.7,3490.4,0.7881]
[1754259424477,2.0582,3490.7,3490.6,0.7881]
[1754259424783,0.3796,3490.4,3489.9,4.0668]
[1754259424982,0.8129,3490.4,3490.3,1.3508]
[1754259425188,4.02773,3491.1,3491.0,0.2551]
[1754259425486,4.02773,3491.1,3491.0,2.0131]
[1754259425487,3.7736,3491.1,3491.0,2.0131]
[1754259426188,0.5658,3491.1,3491.0,2.0131]
[1754259426385,0.95244,3491.0,3490.7,3.2078]
[1754259426581,0.8129,3490.8,3490.7,4.0897]
[1754259426898,2.0582,3490.8,3490.7,5.2209]
[1754259427192,0.9454,3490.8,3490.7,5.2209]
[1754259427389,0.57278,3491.4,3490.9,0.3901]
[1754259427583,1.6736,3491.0,3490.9,1.1541]
[1754259428087,1.6736,3491.0,3490.9,2.0131]
[1754259428386,2.0582,3491.0,3490.9,0.4918]
[1754259428691,0.5658,3490.7,3490.6,2.0131]
[1754259429787,0.8129,3490.7,3490.6,0.4918]
[1754259429986,2.0582,3490.7,3490.6,0.4918]
[1754259430181,2.0582,3490.7,3490.6,2.0131]
[1754259430394,0.8129,3490.7,3490.3,3.78075]
[1754259430589,1.6736,3490.4,3490.3,3.2078]
[1754259430890,2.0582,3490.4,3490.3,3.2078]
[1754259431088,2.0582,3490.4,3490.3,3.6996]
[1754259431294,2.0582,3490.4,3490.3,4.0897]
[1754259431688,2.0582,3490.4,3490.3,4.8549]
[1754259431890,2.0582,3490.4,3490.3,5.2209]
[1754259433295,2.0582,3490.4,3490.3,0.2551]
[1754259433591,2.0582,3490.2,3490.1,1.45489]
[1754259433797,1.6736,3490.2,3490.1,2.61049]
[1754259434491,0.8308,3490.7,3490.4,0.385]
[1754259434689,1.985,3490.5,3490.4,1.6522]
[1754259435493,3.2078,3490.8,3490.5,0.57292]
[1754259435696,1.985,3490.6,3490.5,2.61552]
[1754259436290,1.985,3490.6,3490.5,2.0426]
[1754259436990,0.5333,3490.6,3490.5,2.0426]
[1754259437193,0.3642,3491.1,3490.8,2.0426]
[1754259437387,1.5421,3491.1,3491.0,2.0426]
[1754259437695,0.5333,3491.1,3491.0,2.0426]
[1754259437893,3.2078,3491.2,3491.1,1.37213]
[1754259438094,3.7411,3491.2,3491.1,2.0426]
[1754259438290,4.8286,3491.2,3491.1,2.0426]
[1754259438493,5.1928,3491.2,3491.1,2.0426]
[1754259438896,5.1928,3491.2,3491.1,1.6522]
[1754259439590,0.3642,3490.8,3490.6,0.57289]
[1754259439789,0.3642,3490.8,3490.3,3.5928]
[1754259439790,0.79,3491.0,3490.9,1.6522]
[1754259439989,0.9212,3491.2,3491.1,0.56]
[1754259440189,1.985,3491.2,3491.1,2.0426]
[1754259440395,1.985,3491.2,3491.1,1.6522]
[1754259440792,1.3641,3491.4,3491.3,0.7993]
[1754259440995,1.6208,3491.4,3491.3,2.0426]
[1754259441293,1.985,3491.4,3491.3,1.6522]
[1754259445498,1.985,3491.4,3491.3,1.1843]
[1754259445693,1.5421,3490.9,3490.8,1.75717]
[1754259445900,1.985,3490.9,3490.8,1.45387]
[1754259446102,1.985,3490.9,3490.8,2.61547]
[1754259446393,1.6208,3490.9,3490.8,2.61547]
[1754259446800,1.6208,3490.9,3490.8,0.496]
[1754259447103,0.79,3490.4,3490.3,4.86]
[1754259447295,1.6208,3490.4,3490.3,5.2504]
[1754259447603,0.7521,3490.9,3490.3,5.2504]
[1754259447802,1.985,3490.9,3490.8,1.6522]
[1754259448204,1.985,3490.9,3490.8,0.496]
[1754259448904,1.985,3490.9,3490.8,0.2393]
[1754259450509,1.985,3490.9,3490.8,1.6522]
[1754259451304,0.5333,3490.9,3490.8,2.0426]
[1754259452000,1.1779,3490.9,3490.8,2.0426]
[1754259452209,1.985,3490.9,3490.8,2.0426]
[1754259453507,1.985,3490.9,3490.8,0.881]
[1754259453807,1.985,3490.9,3490.5,0.57292]
[1754259453808,1.985,3490.6,3490.5,0.57292]
[1754259454601,0.5333,3490.8,3490.7,1.37219]
[1754259454798,0.8595,3491.0,3490.9,1.3489]
[1754259455002,1.1542,3491.0,3490.9,2.0426]
[1754259455207,0.79,3491.0,3490.9,2.0426]
[1754259455406,4.8286,3491.2,3491.1,1.5747]
[1754259455709,4.8286,3491.2,3491.1,2.0426]
[1754259455904,3.2078,3491.6,3491.1,0.3904]
[1754259456211,1.7328242,3491.5,3491.4,2.0426]
[1754259456605,0.8116242,3491.5,3491.4,1.6522]
[1754259456807,1.985,3491.5,3491.4,0.2393]
[1754259457106,1.985,3490.9,3490.8,0.881]
[1754259457409,1.6208,3490.9,3490.8,2.0426]
[1754259457712,0.8308,3491.5,3490.8,0.3904]
[1754259458011,1.1779,3491.4,3491.3,0.881]
[1754259458205,1.985,3491.4,3491.3,1.6522]
[1754259459211,1.6208,3491.4,3491.3,2.0426]
[1754259459708,1.985,3491.4,3491.3,2.0426]
[1754259461113,1.985,3491.4,3491.3,1.6522]
[1754259461917,1.985,3491.4,3491.3,2.0426]
[1754259462919,1.985,3491.4,3491.3,1.6522]
[1754259463116,1.985,3491.4,3491.3,1.1843]
[1754259463316,0.7521,3491.3,3490.7,3.5928]
[1754259463515,0.9212,3490.8,3490.7,5.82329]
[1754259463917,1.1779,3490.8,3490.7,5.82329]
[1754259465012,1.1779,3490.8,3490.7,2.61549]
[1754259465218,1.9941,3490.8,3490.7,2.61549]
[1754259465714,1.1779,3490.8,3490.7,5.82329]
[1754259466612,1.4398,3491.1,3491.0,0.57285]
[1754259466815,0.8333,3491.6,3491.5,0.2516]
[1754259467116,1.3786,3491.6,3491.5,2.0231]
[1754259467313,4.0029,3491.7,3491.6,1.38945]
[1754259467619,4.3596,3491.7,3491.6,2.59585]
[1754259468019,5.1929,3491.7,3491.6,2.59585]
[1754259468711,4.3767,3491.7,3491.6,2.59585]
[1754259468917,1.6284,3492.1,3492.0,2.59578]
[1754259469221,3.2078,3492.2,3492.1,1.1743]
[1754259469420,3.2078,3492.2,3492.1,2.0231]
[1754259469617,5.1929,3492.2,3492.1,0.4929]
[1754259469923,0.7951,3491.9,3491.8,1.3417]
[1754259470216,1.9851,3491.9,3491.8,1.3417]
[1754259470423,1.9851,3491.9,3491.8,1.91441]
[1754259470626,1.9851,3491.9,3491.8,2.23821]
[1754259470924,1.9851,3491.9,3491.8,2.59581]
[1754259473321,1.9851,3491.9,3491.8,2.0231]
[1754259473723,0.7951,3491.4,3491.3,1.3895]
[1754259473916,1.19,3491.3,3491.2,0.8141]
[1754259474123,1.9851,3491.3,3491.2,1.3895]
[1754259474417,1.9851,3491.3,3491.2,2.2383]
[1754259474720,1.9851,3491.3,3491.2,1.6655]
[1754259474920,1.9851,3491.3,3491.2,0.4929]
[1754259475120,1.9851,3491.3,3490.8,4.13951467]
[1754259475121,0.3738,3491.2,3490.8,4.13951467]
[1754259475320,1.9851,3490.9,3490.8,0.2413]
[1754259475516,0.7951,3490.9,3490.8,0.8568]
[1754259475716,0.7951,3490.9,3490.8,1.6655]
[1754259476222,1.9851,3490.9,3490.8,1.1806]
[1754259476517,1.19,3490.8,3490.5,0.8488]
[1754259476721,0.7951,3490.6,3490.5,1.3417]
[1754259476928,1.9851,3490.6,3490.5,1.3417]
[1754259478227,1.9851,3490.6,3490.5,1.6655]
[1754259478625,1.9851,3490.6,3490.5,2.0231]
[1754259479125,1.6284,3490.6,3490.5,2.0231]
[1754259479626,1.9851,3490.6,3490.5,2.0231]
[1754259479830,1.9851,3490.6,3490.5,0.4929]
[1754259480424,0.7951,3490.6,3490.3,3.78076]
[1754259480627,1.9851,3490.4,3490.3,4.96136]
[1754259480926,1.9851,3490.4,3490.3,1.6655]
[1754259481724,1.6113,3490.8,3490.7,2.596]
[1754259482429,1.9851,3490.8,3490.7,2.0231]
[1754259482628,1.9851,3490.8,3490.7,1.6655]
[1754259482828,1.9851,3490.8,3490.7,2.0231]
[1754259483227,3.2078,3491.0,3490.8,0.57288]
[1754259483432,3.2078,3491.0,3490.9,2.0231]
[1754259484139,0.4595,3491.2,3491.1,2.0231]
[1754259484439,0.4595,3491.2,3491.0,0.57285]
[1754259484440,0.5453,3491.5,3491.4,1.6655]
[1754259484633,1.6284,3491.5,3491.4,2.0231]
[1754259484832,1.9851,3491.5,3491.4,2.0231]
[1754259485525,0.7951,3491.5,3491.0,0.3639]
[1754259485726,1.9851,3490.9,3490.8,3.2078]
[1754259486029,1.9851,3490.9,3490.8,4.8733]
[1754259486228,1.1689,3490.9,3490.8,5.2309]
[1754259486936,1.6284,3490.9,3490.8,5.2309]
[1754259487425,1.9851,3490.9,3490.8,5.2309]
[1754259487627,1.6113,3491.5,3491.4,0.4929]
[1754259487934,3.2078,3491.6,3491.5,2.0231]
[1754259487935,4.2126,3491.6,3491.5,2.0231]
[1754259488123,4.8191,3491.6,3491.5,2.0231]
[1754259488327,5.1929,3491.6,3491.5,1.6655]
[1754259489526,5.1929,3491.6,3491.5,2.0231]
[1754259489527,3.2078,3491.6,3491.5,2.0231]
[1754259490335,1.6284,3492.1,3492.0,0.4929]
[1754259490531,1.9851,3492.1,3492.0,0.2516]
[1754259491228,1.9851,3492.1,3492.0,0.8167]
[1754259491435,1.9851,3492.1,3492.0,2.0231]
[1754259491731,3.2078,3492.7,3492.4,0.8568]
[1754259491732,0.7951,3492.5,3492.4,0.8568]
[1754259491930,3.2078,3492.7,3492.6,1.5382]
[1754259491931,3.7531,3492.7,3492.6,1.5382]
[1754259492234,3.7531,3492.7,3492.6,2.0231]
[1754259492627,3.2078,3492.7,3492.6,2.0231]
[1754259493435,0.3738,3492.9,3492.8,0.8167]
[1754259493637,0.9191,3492.9,3492.8,2.0231]
[1754259493839,1.3847,3492.9,3492.8,2.0231]
[1754259494039,1.6345,3492.9,3492.8,2.0231]
[1754259494335,1.2431,3493.0,3492.9,2.0014]
[1754259494539,2.9749,3493.0,3492.9,2.0014]
[1754259494739,2.9749,3493.0,3492.6,0.8429]
[1754259495036,2.9749,3493.0,3491.5,1.43191]
[1754259495037,0.2268,3492.4,3492.3,1.40243]
[1754259495234,1.9749,3492.4,3492.3,2.19773]
[1754259495430,1.9749,3492.4,3492.3,0.4815]
[1754259495936,1.9749,3492.4,3492.3,1.6382]
[1754259496538,0.7851,3492.2,3492.1,1.05416]
[1754259496740,1.9749,3492.2,3492.1,1.05416]
[1754259496933,1.9749,3492.2,3492.1,1.43046]
[1754259497442,1.9749,3492.2,3492.1,2.57406]
[1754259497935,3.2078,3492.8,3492.1,1.2061]
[1754259498140,1.2507,3492.7,3492.6,0.4815]
[1754259498434,1.1898,3492.6,3492.4,0.3763]
[1754259498636,0.7851,3492.5,3492.4,0.8578]
[1754259498836,1.9749,3492.5,3492.4,0.8578]
[1754259499338,0.7851,3492.1,3492.0,0.80747]
[1754259499537,0.7851,3492.0,3491.8,3.78051]
[1754259499739,1.9749,3492.0,3491.7,0.57273]
[1754259499943,0.7851,3491.6,3491.5,1.43056]
[1754259500143,1.9749,3491.6,3491.5,1.43056]
[1754259500339,1.9749,3491.6,3491.5,1.89716]
[1754259500530,1.9749,3491.6,3491.5,2.21096]
[1754259500843,1.9749,3491.6,3491.5,2.57416]
[1754259502542,1.9749,3491.6,3491.4,3.2078]
[1754259502739,1.9749,3491.6,3491.3,0.57279]
[1754259502740,1.9749,3491.4,3491.3,0.57279]
[1754259503142,1.9749,3491.4,3490.9,3.2078]
[1754259503350,1.9749,3491.0,3490.9,4.02736]
[1754259503541,1.9749,3491.4,3491.3,0.5728]
[1754259503948,0.7851,3491.4,3491.1,0.57282]
[1754259504151,1.9749,3491.2,3491.1,0.57282]
[1754259504642,1.9749,3491.2,3490.4,4.22458269]
[1754259504643,1.9749,3491.0,3490.8,0.57287]
[1754259504852,1.9749,3490.9,3490.8,0.57287]
[1754259505544,1.9749,3490.6,3490.5,0.57292]
[1754259506145,1.9749,3490.6,3490.5,1.43072]
[1754259506849,1.9749,3490.6,3490.4,0.57294]
[1754259507048,3.2078,3491.2,3490.4,0.57294]
[1754259507049,1.9749,3490.5,3490.4,1.43074]
[1754259507254,1.9749,3490.5,3490.4,1.89734]
[1754259507753,1.9749,3490.5,3490.4,2.21114]
[1754259508748,1.9749,3490.5,3490.4,2.57434]
[1754259508944,1.9749,3490.5,3490.4,0.57294]
[1754259509256,1.9749,3490.5,3490.4,2.21114]
[1754259509452,1.9749,3490.5,3490.4,2.57434]
[1754259509852,0.9167,3490.5,3490.4,2.57434]
[1754259510157,4.4585,3490.8,3490.7,2.5743]
[1754259510555,4.5901,3490.8,3490.7,2.5743]
[1754259510751,1.7318,3491.3,3491.2,1.6382]
[1754259510951,1.9749,3491.3,3491.2,1.6382]
[1754259511255,1.9749,3491.3,3491.2,0.8578]
[1754259511554,1.9749,3491.1,3491.0,0.80765]
[1754259511750,1.3823,3491.1,3491.0,2.21105]
[1754259512057,5.1827,3491.5,3491.4,1.3244]
[1754259512257,0.7851,3491.1,3491.0,0.7953]
[1754259512551,3.2078,3491.5,3491.4,0.7953]
[1754259512757,3.2078,3491.5,3491.4,1.6251]
[1754259512952,3.2078,3491.5,3491.4,2.0014]
[1754259513148,0.3584,3491.9,3491.8,1.36802]
[1754259513350,0.4656,3492.1,3491.8,2.57412]
[1754259513554,0.6015,3492.0,3491.9,2.0014]
[1754259513754,0.9167,3492.0,3491.9,2.0014]
[1754259513956,1.6091,3492.0,3491.9,2.0014]
[1754259514351,1.9749,3492.0,3491.9,2.0014]
[1754259514552,0.3584,3492.3,3492.2,0.4815]
[1754259514752,0.9167,3492.3,3492.2,2.0014]
[1754259515059,3.2078,3492.4,3492.3,2.57404]
[1754259515258,4.8169,3492.4,3492.3,2.57404]
[1754259515458,5.1827,3492.4,3492.3,2.21084]
[1754259516255,1.9749,3492.4,3492.3,2.21084]
[1754259517558,1.9749,3492.4,3492.3,2.0014]
[1754259517863,1.9749,3492.4,3492.3,1.6382]
[1754259518162,5.1827,3492.4,3492.0,1.2061]
[1754259518365,0.7851,3492.2,3492.1,0.8578]
[1754259518562,1.9749,3492.2,3492.1,0.8578]
[1754259518953,1.1898,3492.1,3491.7,0.3763]
[1754259519164,1.9749,3491.8,3491.7,1.6382]
[1754259519361,1.9749,3491.8,3491.7,2.0014]
[1754259520967,1.9749,3491.8,3491.4,1.41568]
[1754259521263,1.9749,3491.7,3491.6,1.1716]
[1754259521469,1.9749,3491.7,3491.6,1.6382]
[1754259521760,0.5583,3491.7,3491.6,2.0014]
[1754259521965,0.9167,3491.7,3491.6,2.0014]
[1754259522166,1.6091,3491.7,3491.6,2.0014]
[1754259522960,1.6091,3491.8,3491.7,2.0014]
[1754259523160,1.6165,3491.8,3491.7,2.0014]
[1754259523560,1.6165,3491.8,3491.7,1.6382]
[1754259523760,1.9749,3491.8,3491.3,0.5728]
[1754259523962,0.7648,3491.6,3491.5,1.2895]
[1754259524163,0.8225,3491.3,3491.2,0.2341]
[1754259524367,1.961,3491.3,3491.2,0.4747]
[1754259524668,1.6083,3491.3,3491.2,1.9497]
[1754259525166,1.961,3491.3,3491.2,1.9497]
[1754259525670,1.961,3491.3,3491.2,1.611]
[1754259527064,1.961,3491.3,3491.2,1.9497]
[1754259529368,0.7648,3491.1,3491.0,21.1445]
[1754259529572,1.961,3491.1,3491.0,0.4747]
[1754259530666,1.961,3491.1,3491.0,0.2341]
[1754259531169,0.7074,3491.0,3490.7,0.8148]
[1754259531470,1.961,3490.8,3490.7,1.2895]
[1754259531667,5.1688,3490.8,3490.7,0.2406]
[1754259531971,1.961,3490.6,3490.4,0.454]
[1754259532272,0.7648,3490.6,3490.5,0.8355]
[1754259532470,0.7648,3490.6,3490.5,0.2406]
[1754259532663,1.961,3490.6,3490.5,0.2406]
[1754259533873,1.961,3490.6,3490.5,0.4747]
[1754259534072,1.961,3490.6,3490.5,0.8355]
[1754259534275,1.961,3490.6,3490.5,0.2406]
[1754259534475,0.7648,3490.4,3490.3,0.8355]
[1754259534670,1.961,3490.4,3490.3,0.8355]
[1754259534877,1.961,3490.4,3490.3,1.611]
[1754259535272,1.961,3490.4,3490.3,1.9497]
[1754259537275,1.961,3490.4,3490.3,1.611]
[1754259537475,1.961,3490.4,3490.3,1.9497]
[1754259537973,1.6083,3490.4,3490.3,1.9497]
[1754259538378,3.9726,3490.8,3490.7,0.7962]
[1754259538881,3.9726,3490.8,3490.7,1.9497]
[1754259539074,3.2078,3490.8,3490.7,1.9497]
[1754259539478,3.4356,3490.8,3490.7,1.9497]
[1754259539772,4.5741,3490.8,3490.7,1.9497]
[1754259539973,5.1688,3490.8,3490.7,1.9497]
[1754259540573,3.2078,3490.8,3490.7,1.9497]
[1754259541982,5.1688,3490.8,3490.7,1.9497]
[1754259542182,4.3273,3490.8,3490.7,1.9497]
[1754259542383,3.2078,3490.8,3490.7,1.9497]
[1754259542585,1.0116,3491.0,3490.9,0.7962]
[1754259542774,1.3663,3491.0,3490.9,1.9497]
[1754259542978,1.6083,3491.0,3490.9,1.9497]
[1754259543285,5.1688,3491.4,3491.3,2.52251]
[1754259544187,4.8161,3491.4,3491.3,2.52251]
[1754259544483,5.1688,3491.4,3491.3,2.52251]
[1754259544788,3.2078,3491.4,3491.3,2.52251]
[1754259545788,1.3663,3491.9,3491.8,1.36893]
[1754259545978,0.8775,3491.9,3491.8,2.52243]
[1754259546381,1.961,3491.9,3491.8,2.18373]
[1754259546888,1.961,3491.8,3491.7,0.57274]
[1754259547885,0.7648,3491.0,3490.9,24.6688]
[1754259548083,1.1195,3491.0,3490.9,25.58038]
[1754259548386,1.961,3491.3,3491.2,1.36903]
[1754259548586,1.961,3491.3,3491.2,2.52253]
[1754259548786,1.6083,3491.3,3491.2,2.52253]
[1754259549286,3.2078,3491.7,3491.6,1.9497]
[1754259549894,0.8775,3491.7,3491.6,1.9497]
[1754259550194,1.1195,3491.7,3491.6,1.9497]
[1754259550595,1.4722,3491.7,3491.6,1.9497]
[1754259550790,1.961,3491.7,3491.6,1.9497]
[1754259552394,1.6083,3491.7,3491.6,1.9497]
[1754259554090,1.145,3492.0,3491.9,1.9344]
[1754259554598,1.9435,3492.0,3491.9,1.9344]
[1754259555096,4.5678,3493.0,3492.4,0.2201]
[1754259555298,0.693,3493.7,3493.6,0.79254]
[1754259555797,0.9137,3493.7,3493.6,1.63164]
[1754259556002,1.3559,3493.7,3493.6,1.96334]
[1754259556789,1.4952,3493.7,3493.6,1.96334]
[1754259557799,1.3559,3493.7,3493.6,1.96334]
[1754259558700,1.4952,3493.7,3493.6,1.96334]
[1754259559502,0.693,3493.4,3493.3,0.3317]
[1754259559698,1.5823,3493.4,3493.3,0.3317]
[1754259561005,1.5823,3493.4,3493.3,1.12429]
[1754259561198,1.5823,3493.4,3493.3,1.36579]
[1754259561503,1.5823,3493.4,3493.3,1.63889]
[1754259562500,0.9137,3493.4,3493.3,1.96339]
[1754259562904,1.3559,3493.4,3493.3,1.96339]
[1754259563411,0.36,3493.4,3493.3,5.35829]
[1754259564710,0.4422,3493.7,3493.3,5.35829]
[1754259564711,1.3559,3493.7,3493.6,1.96334]
[1754259566306,1.4952,3493.7,3493.6,1.96334]
[1754259566701,1.5823,3493.7,3493.6,1.96334]
[1754259569905,0.693,3493.7,3493.5,0.57245]
[1754259570125,1.43062,3494.9,3493.2,19.851]
[1754259570126,0.7649,3493.3,3493.2,19.851]
[1754259570409,0.4422,3493.0,3492.9,20.42056]
[1754259570715,1.5823,3493.0,3492.9,20.42056]
[1754259571709,4.7901,3493.0,3492.9,20.42056]
[1754259571906,4.7901,3493.0,3492.9,19.848]
[1754259572109,1.5823,3492.5,3492.4,20.0751]
[1754259572408,1.5823,3492.5,3492.4,20.64776]
[1754259572610,1.5823,3492.5,3492.4,21.49406]
[1754259572813,1.4952,3492.5,3492.4,21.81856]
[1754259573008,1.3559,3492.5,3492.4,21.81856]
[1754259576210,1.4952,3492.5,3492.4,21.81856]
[1754259577911,4.1215,3493.0,3492.9,1.3909]
[1754259578115,3.8037,3493.0,3492.9,21.2469]
[1754259578619,0.5959,3493.0,3492.9,21.2469]
[1754259578806,0.36,3493.0,3492.9,21.434]
[1754259580914,0.5959,3493.0,3492.9,21.434]
[1754259581812,0.9137,3493.0,3492.9,21.434]
[1754259583615,0.9137,3493.0,3492.9,21.2469]
[1754259584115,1.6645,3493.0,3492.9,20.3908]
[1754259584415,1.6483,3493.0,3492.9,19.839]
[1754259585213,1.6483,3493.0,3492.9,20.441]
[1754259585824,6.6483,3493.0,3492.9,20.441]
[1754259587012,6.6483,3493.0,3492.9,19.839]
[1754259587214,0.7322,3492.8,3492.7,20.41163]
[1754259587418,1.6595,3492.8,3492.7,20.78423]
[1754259587718,5.0,3493.0,3491.9,0.57276]
[1754259587719,1.2351,3492.1,3491.9,0.57276]
[1754259587918,1.6595,3492.1,3492.0,20.441]
[1754259588218,1.6595,3492.1,3492.0,20.6773]
[1754259588411,1.6595,3492.1,3492.0,21.2722]
[1754259588610,3.7966,3492.5,3492.4,2.00588]
[1754259588812,4.1165,3492.5,3492.4,6.83378828]
[1754259589012,4.5955,3492.5,3492.4,6.83378828]
[1754259589413,0.3199,3492.3,3492.2,0.5727]
[1754259589621,1.6595,3492.3,3492.2,0.5727]
[1754259589809,0.7322,3492.3,3491.6,0.273]
[1754259590015,1.6595,3492.0,3491.9,0.3726]
[1754259590420,1.6595,3492.0,3491.9,0.94536]
[1754259592611,1.6595,3492.0,3491.9,1.17476]
[1754259592920,1.6595,3492.0,3491.9,2.00596]
[1754259594625,4.8673,3492.0,3491.9,1.17476]
[1754259595723,1.6595,3492.0,3491.9,1.68406]
[1754259596527,1.6595,3492.0,3491.9,1.17476]
[1754259597127,1.6595,3492.0,3491.9,1.41106]
[1754259597424,1.6595,3492.0,3491.9,1.68406]
[1754259597620,1.6595,3492.0,3491.9,2.00596]
[1754259597818,1.6595,3492.0,3491.9,1.17476]
[1754259598023,4.8673,3492.0,3491.9,0.602]
[1754259600118,0.57276,3491.9,3491.3,0.2735]
[1754259600324,1.6417,3491.4,3491.3,0.57286]
[1754259600524,1.6417,3491.4,3491.3,20.78746]
[1754259600829,1.6417,3491.4,3491.3,21.01686]
[1754259601222,1.6417,3491.4,3491.3,1.41116]
[1754259601428,0.9087,3491.4,3491.3,2.20426]
[1754259601626,0.3438,3491.3,3490.7,0.3726]
[1754259601830,1.544,3490.8,3490.7,20.9041]
[1754259602130,1.6417,3490.8,3490.7,20.9041]
[1754259602328,1.6417,3490.8,3490.7,21.2767]
[1754259603329,1.544,3490.8,3490.7,21.2767]
[1754259603526,1.3877,3490.8,3490.7,21.2767]
[1754259604228,3.2078,3491.2,3491.0,0.3726]
[1754259604229,3.4528,3491.2,3491.0,0.3726]